[Event "Titled Tuesday Blitz May 10 Late 2022"]
[White "Khripachenko, Alexander"]
[Black "Svane, Frederik"]
[WhiteFideId "54184975"]
[BlackFideId "12923044"]
[WhiteElo "2138"]
[BlackElo "2459"]
[Result "1-0"]
[Round "04"]
[TimeControl "180+1"]
[Date "2022.05.10"]
[WhiteClock "0:00:34"]
[BlackClock "0:00:58"]

1. e4 {[%clk 0:03:00]}  c5 {[%clk 0:02:59]} 2. Nf3 {[%clk 0:03:00]}  d6 {[%clk 0:02:59]} 3. d4 {[%clk 0:03:00]}  cxd4 {[%clk 0:03:00]} 4. Nxd4 {[%clk 0:03:01]}  Nf6 {[%clk 0:03:00]} 5. f3 {[%clk 0:03:02]}  Nc6 {[%clk 0:03:01]} 6. c4 {[%clk 0:03:01]}  e5 {[%clk 0:03:00]} 7. Nc2 {[%clk 0:03:01]}  Be7 {[%clk 0:03:00]} 8. Nc3 {[%clk 0:03:01]}  O-O {[%clk 0:03:00]} 9. Be3 {[%clk 0:03:01]}  Be6 {[%clk 0:02:56]} 10. Qd2 {[%clk 0:03:01]}  h6 {[%clk 0:02:53]} 11. Nd5 {[%clk 0:03:01]}  Nd7 {[%clk 0:02:52]} 12. Be2 {[%clk 0:02:59]}  Bg5 {[%clk 0:02:51]} 13. Bxg5 {[%clk 0:02:59]}  hxg5 {[%clk 0:02:49]} 14. O-O-O {[%clk 0:02:57]}  Nc5 {[%clk 0:02:48]} 15. Kb1 {[%clk 0:02:58]}  Bxd5 {[%clk 0:02:07]} 16. cxd5 {[%clk 0:02:54]}  Nb8 {[%clk 0:02:03]} 17. Ne3 {[%clk 0:02:53]}  Qf6 {[%clk 0:01:58]} 18. b4 {[%clk 0:02:13]}  Na4 {[%clk 0:01:52]} 19. Bb5 {[%clk 0:02:09]}  Nb6 {[%clk 0:01:50]} 20. h4 {[%clk 0:02:09]}  gxh4 {[%clk 0:01:49]} 21. Ng4 {[%clk 0:02:08]}  Qe7 {[%clk 0:01:49]} 22. g3 {[%clk 0:02:03]}  hxg3 {[%clk 0:01:36]} 23. Nh6+ {[%clk 0:01:40]}  gxh6 {[%clk 0:01:35]} 24. Qxh6 {[%clk 0:01:41]}  f5 {[%clk 0:01:36]} 25. Qh8+ {[%clk 0:01:38]}  Kf7 {[%clk 0:01:36]} 26. Rh7+ {[%clk 0:01:38]}  Kg6 {[%clk 0:01:36]} 27. Rh6+ {[%clk 0:01:32]}  Kg5 {[%clk 0:01:37]} 28. Rh5+ {[%clk 0:01:29]}  Kf4 {[%clk 0:01:34]} 29. Qh6+ {[%clk 0:01:29]}  Kxf3 {[%clk 0:01:34]} 30. Rf1+ {[%clk 0:00:55]}  Kxe4 {[%clk 0:01:19]} 31. Qd2 {[%clk 0:00:36]}  g2 {[%clk 0:00:58]} 32. Qd3# {[%clk 0:00:34]} 1-0


[Site "https://www.chess.com"]

[Event "Titled Tuesday Blitz May 10 Late 2022"]
[White "Leiva, Gianmarco"]
[Black "Lewicki, Miroslaw"]
[WhiteFideId "3804399"]
[BlackFideId "1113380"]
[WhiteElo "2699"]
[BlackElo "2545"]
[Result "1-0"]
[Round "04"]
[TimeControl "180+1"]
[Date "2022.05.11"]
[WhiteClock "0:00:18"]
[BlackClock "0:00:03"]

1. e4 {[%clk 0:02:56]}  c5 {[%clk 0:02:59]} 2. Nf3 {[%clk 0:02:57]}  d6 {[%clk 0:02:59]} 3. Bb5+ {[%clk 0:02:57]}  Bd7 {[%clk 0:02:59]} 4. c4 {[%clk 0:02:55]}  Bxb5 {[%clk 0:02:58]} 5. cxb5 {[%clk 0:02:56]}  Nf6 {[%clk 0:02:58]} 6. Nc3 {[%clk 0:02:55]}  g6 {[%clk 0:02:58]} 7. O-O {[%clk 0:02:54]}  Bg7 {[%clk 0:02:58]} 8. d3 {[%clk 0:02:53]}  O-O {[%clk 0:02:49]} 9. a4 {[%clk 0:02:51]}  e5 {[%clk 0:02:39]} 10. Bg5 {[%clk 0:02:49]}  Nbd7 {[%clk 0:02:38]} 11. Nd2 {[%clk 0:02:49]}  h6 {[%clk 0:02:37]} 12. Bxf6 {[%clk 0:02:49]}  Nxf6 {[%clk 0:02:37]} 13. Nc4 {[%clk 0:02:50]}  d5 {[%clk 0:02:37]} 14. Nxe5 {[%clk 0:02:35]}  Re8 {[%clk 0:02:28]} 15. Ng4 {[%clk 0:02:35]}  Nxg4 {[%clk 0:02:16]} 16. Qxg4 {[%clk 0:02:36]}  Bxc3 {[%clk 0:02:17]} 17. bxc3 {[%clk 0:02:36]}  dxe4 {[%clk 0:02:18]} 18. dxe4 {[%clk 0:02:36]}  Qd3 {[%clk 0:02:18]} 19. Qg3 {[%clk 0:02:10]}  Qxe4 {[%clk 0:02:05]} 20. h4 {[%clk 0:02:04]}  h5 {[%clk 0:02:01]} 21. Rfe1 {[%clk 0:01:57]}  Qxe1+ {[%clk 0:01:55]} 22. Rxe1 {[%clk 0:01:58]}  Rxe1+ {[%clk 0:01:56]} 23. Kh2 {[%clk 0:01:59]}  b6 {[%clk 0:01:56]} 24. Qc7 {[%clk 0:01:58]}  Re4 {[%clk 0:01:38]} 25. Qb7 {[%clk 0:01:54]}  Rxh4+ {[%clk 0:01:37]} 26. Kg3 {[%clk 0:01:55]}  Rg4+ {[%clk 0:01:37]} 27. Kf3 {[%clk 0:01:55]}  Rd8 {[%clk 0:01:28]} 28. Qxa7 {[%clk 0:01:56]}  Rd3+ {[%clk 0:01:27]} 29. Ke2 {[%clk 0:01:56]}  Rxc3 {[%clk 0:01:28]} 30. Qb8+ {[%clk 0:01:33]}  Kh7 {[%clk 0:01:27]} 31. Qxb6 {[%clk 0:01:33]}  Rxa4 {[%clk 0:01:22]} 32. Qf6 {[%clk 0:01:33]}  Ra2+ {[%clk 0:01:22]} 33. Kd1 {[%clk 0:01:34]}  Rd3+ {[%clk 0:01:17]} 34. Kc1 {[%clk 0:01:34]}  Rd7 {[%clk 0:01:15]} 35. Qc6 {[%clk 0:01:32]}  Re7 {[%clk 0:01:13]} 36. Kd1 {[%clk 0:01:20]}  Rxf2 {[%clk 0:01:11]} 37. Qxc5 {[%clk 0:01:11]}  Rd7+ {[%clk 0:01:06]} 38. Ke1 {[%clk 0:01:10]}  Rf5 {[%clk 0:00:57]} 39. Qc6 {[%clk 0:01:04]}  Re7+ {[%clk 0:00:58]} 40. Kd2 {[%clk 0:01:01]}  Re6 {[%clk 0:00:58]} 41. Qb7 {[%clk 0:00:56]}  Kg7 {[%clk 0:00:49]} 42. Kd3 {[%clk 0:00:52]}  Rff6 {[%clk 0:00:31]} 43. Qc7 {[%clk 0:00:40]}  g5 {[%clk 0:00:22]} 44. Qc5 {[%clk 0:00:33]}  Kg6 {[%clk 0:00:22]} 45. Qc2 {[%clk 0:00:31]}  h4 {[%clk 0:00:15]} 46. Kc4+ {[%clk 0:00:29]}  Kh6 {[%clk 0:00:15]} 47. Qb2 {[%clk 0:00:26]}  g4 {[%clk 0:00:14]} 48. Qd4 {[%clk 0:00:24]}  Kg5 {[%clk 0:00:12]} 49. Qd2+ {[%clk 0:00:24]}  Kh5 {[%clk 0:00:12]} 50. Qd5+ {[%clk 0:00:23]}  Kg6 {[%clk 0:00:12]} 51. Qd4 {[%clk 0:00:21]}  Kg5 {[%clk 0:00:09]} 52. Qd2+ {[%clk 0:00:21]}  Rf4+ {[%clk 0:00:09]} 53. Kc5 {[%clk 0:00:20]}  Re5+ {[%clk 0:00:06]} 54. Kc6 {[%clk 0:00:18]}  h3 {[%clk 0:00:03]} 55. g3 {[%clk 0:00:18]} 1-0


[Site "https://www.chess.com"]

[Event "Titled Tuesday Blitz May 10 Late 2022"]
[White "Lewtak, Damian"]
[Black "Paravyan, David"]
[WhiteFideId "1141724"]
[BlackFideId "4194985"]
[WhiteElo "2362"]
[BlackElo "2569"]
[Result "0-1"]
[Round "04"]
[TimeControl "180+1"]
[Date "2022.05.10"]
[WhiteClock "0:00:06"]
[BlackClock "0:00:15"]

1. d4 {[%clk 0:02:56]}  Nf6 {[%clk 0:02:59]} 2. c3 {[%clk 0:02:54]}  g6 {[%clk 0:02:59]} 3. Bf4 {[%clk 0:02:54]}  Bg7 {[%clk 0:02:59]} 4. e3 {[%clk 0:02:54]}  O-O {[%clk 0:02:54]} 5. h3 {[%clk 0:02:54]}  d6 {[%clk 0:02:50]} 6. Nd2 {[%clk 0:02:54]}  Nc6 {[%clk 0:02:37]} 7. Bh2 {[%clk 0:02:54]}  e5 {[%clk 0:02:37]} 8. Bb5 {[%clk 0:02:51]}  Bd7 {[%clk 0:02:34]} 9. a4 {[%clk 0:02:46]}  a6 {[%clk 0:02:28]} 10. Bd3 {[%clk 0:02:44]}  exd4 {[%clk 0:02:29]} 11. cxd4 {[%clk 0:02:42]}  Re8 {[%clk 0:02:09]} 12. Ne2 {[%clk 0:02:41]}  Nb4 {[%clk 0:02:06]} 13. Bb1 {[%clk 0:02:37]}  b5 {[%clk 0:01:56]} 14. O-O {[%clk 0:02:13]}  bxa4 {[%clk 0:01:56]} 15. Nc3 {[%clk 0:02:13]}  Bb5 {[%clk 0:01:55]} 16. Re1 {[%clk 0:02:12]}  c5 {[%clk 0:01:55]} 17. Nf3 {[%clk 0:02:00]}  Qe7 {[%clk 0:01:39]} 18. Nxa4 {[%clk 0:01:54]}  Rad8 {[%clk 0:01:33]} 19. Nc3 {[%clk 0:01:52]}  Nfd5 {[%clk 0:01:30]} 20. Bg3 {[%clk 0:01:35]}  Qb7 {[%clk 0:01:07]} 21. Qd2 {[%clk 0:01:22]}  Nb6 {[%clk 0:01:04]} 22. b3 {[%clk 0:01:14]}  Nc6 {[%clk 0:00:58]} 23. Nxb5 {[%clk 0:00:54]}  axb5 {[%clk 0:00:59]} 24. Bd3 {[%clk 0:00:55]}  cxd4 {[%clk 0:00:58]} 25. exd4 {[%clk 0:00:49]}  Nxd4 {[%clk 0:00:48]} 26. Rxe8+ {[%clk 0:00:45]}  Rxe8 {[%clk 0:00:47]} 27. Nxd4 {[%clk 0:00:46]}  Bxd4 {[%clk 0:00:47]} 28. Bxb5 {[%clk 0:00:46]}  Bxa1 {[%clk 0:00:43]} 29. Bxe8 {[%clk 0:00:46]}  Be5 {[%clk 0:00:37]} 30. Bb5 {[%clk 0:00:40]}  Bxg3 {[%clk 0:00:34]} 31. fxg3 {[%clk 0:00:41]}  Qc7 {[%clk 0:00:29]} 32. Kh2 {[%clk 0:00:38]}  Qc5 {[%clk 0:00:28]} 33. Be2 {[%clk 0:00:37]}  Nd5 {[%clk 0:00:26]} 34. Bc4 {[%clk 0:00:33]}  Ne3 {[%clk 0:00:25]} 35. Be2 {[%clk 0:00:27]}  Qe5 {[%clk 0:00:24]} 36. b4 {[%clk 0:00:23]}  Nf5 {[%clk 0:00:15]} 37. Qd3 {[%clk 0:00:18]}  h5 {[%clk 0:00:16]} 38. Kg1 {[%clk 0:00:08]}  Nxg3 {[%clk 0:00:15]} 39. Kf2 {[%clk 0:00:05]}  Nxe2 {[%clk 0:00:14]} 40. Qxe2 {[%clk 0:00:06]}  Qd4+ {[%clk 0:00:15]} 0-1


[Site "https://www.chess.com"]

[Event "Titled Tuesday Blitz May 10 Late 2022"]
[White "Lopez Del Alamo, Antonio"]
[Black "Sailer, Mike"]
[WhiteFideId "2227339"]
[BlackFideId "2012901"]
[WhiteElo "2089"]
[BlackElo "2109"]
[Result "0-1"]
[Round "04"]
[TimeControl "180+1"]
[Date "2022.05.11"]
[WhiteClock "0:00:12"]
[BlackClock "0:00:06"]

1. e4 {[%clk 0:01:42]}  d5 {[%clk 0:02:58]} 2. exd5 {[%clk 0:01:40]}  Qxd5 {[%clk 0:02:57]} 3. Nc3 {[%clk 0:01:40]}  Qd6 {[%clk 0:02:55]} 4. d4 {[%clk 0:01:41]}  Nf6 {[%clk 0:02:52]} 5. Nge2 {[%clk 0:01:40]}  c6 {[%clk 0:02:49]} 6. Bf4 {[%clk 0:01:40]}  Qd8 {[%clk 0:02:48]} 7. Qd3 {[%clk 0:01:35]}  g6 {[%clk 0:02:35]} 8. Ng3 {[%clk 0:01:33]}  Bg7 {[%clk 0:02:35]} 9. O-O-O {[%clk 0:01:29]}  Be6 {[%clk 0:02:32]} 10. Be5 {[%clk 0:01:15]}  Nbd7 {[%clk 0:02:30]} 11. f4 {[%clk 0:01:16]}  Qa5 {[%clk 0:02:26]} 12. a3 {[%clk 0:01:03]}  O-O-O {[%clk 0:02:18]} 13. Be2 {[%clk 0:00:58]}  Nxe5 {[%clk 0:02:08]} 14. fxe5 {[%clk 0:00:56]}  Nd5 {[%clk 0:02:08]} 15. Nxd5 {[%clk 0:00:51]}  Bxd5 {[%clk 0:02:04]} 16. Bf3 {[%clk 0:00:47]}  Bxf3 {[%clk 0:02:03]} 17. Qxf3 {[%clk 0:00:46]}  Rhf8 {[%clk 0:01:55]} 18. Ne4 {[%clk 0:00:38]}  Kb8 {[%clk 0:01:38]} 19. Rd3 {[%clk 0:00:36]}  Ka8 {[%clk 0:01:35]} 20. Rhd1 {[%clk 0:00:36]}  f6 {[%clk 0:01:25]} 21. exf6 {[%clk 0:00:32]}  exf6 {[%clk 0:01:25]} 22. Nc5 {[%clk 0:00:27]}  Rfe8 {[%clk 0:01:11]} 23. Rb3 {[%clk 0:00:24]}  Re7 {[%clk 0:01:00]} 24. Nxb7 {[%clk 0:00:19]}  Rxb7 {[%clk 0:00:57]} 25. Qxc6 {[%clk 0:00:20]}  Rb8 {[%clk 0:00:31]} 26. Rdd3 {[%clk 0:00:20]}  Qe1+ {[%clk 0:00:28]} 27. Rd1 {[%clk 0:00:19]}  Bh6+ {[%clk 0:00:28]} 28. Kb1 {[%clk 0:00:17]}  Qxd1+ {[%clk 0:00:29]} 29. Ka2 {[%clk 0:00:18]}  Qxd4 {[%clk 0:00:19]} 30. a4 {[%clk 0:00:13]}  Qd7 {[%clk 0:00:15]} 31. Qf3 {[%clk 0:00:12]}  Bf8 {[%clk 0:00:08]} 32. a5 {[%clk 0:00:12]}  a6 {[%clk 0:00:08]} 33. Rb6 {[%clk 0:00:12]}  Ka7 {[%clk 0:00:06]} 34. Kb1 {[%clk 0:00:12]}  Rxb6 {[%clk 0:00:06]} 35. axb6+ {[%clk 0:00:12]}  Rxb6 {[%clk 0:00:07]} 36. Qe3 {[%clk 0:00:12]}  Qb7 {[%clk 0:00:07]} 37. b3 {[%clk 0:00:12]}  Bb4 {[%clk 0:00:07]} 38. g4 {[%clk 0:00:12]}  a5 {[%clk 0:00:07]} 39. Ka2 {[%clk 0:00:12]}  Ka8 {[%clk 0:00:07]} 40. h4 {[%clk 0:00:13]}  a4 {[%clk 0:00:07]} 41. bxa4 {[%clk 0:00:12]}  Bc3 {[%clk 0:00:07]} 42. Qe8+ {[%clk 0:00:12]}  Qb8 {[%clk 0:00:07]} 43. Qe4+ {[%clk 0:00:12]}  Ka7 {[%clk 0:00:07]} 44. Qe7+ {[%clk 0:00:12]}  Qb7 {[%clk 0:00:08]} 45. Qc5 {[%clk 0:00:12]}  Qc6 {[%clk 0:00:07]} 46. Qe7+ {[%clk 0:00:12]}  Ka6 {[%clk 0:00:07]} 47. Qe2+ {[%clk 0:00:12]}  Ka5 {[%clk 0:00:06]} 0-1


[Site "https://www.chess.com"]

[Event "Titled Tuesday Blitz May 10 Late 2022"]
[White "Maksimovic, Bojan"]
[Black "Daggupati, Balaji"]
[WhiteFideId "14408120"]
[BlackFideId "2090759"]
[WhiteElo "2725"]
[BlackElo "2640"]
[Result "1-0"]
[Round "04"]
[TimeControl "180+1"]
[Date "2022.05.11"]
[WhiteClock "0:01:33"]
[BlackClock "0:00:03"]

1. g3 {[%clk 0:03:00]}  d5 {[%clk 0:02:59]} 2. Bg2 {[%clk 0:03:01]}  Nf6 {[%clk 0:02:59]} 3. Nf3 {[%clk 0:03:00]}  c5 {[%clk 0:02:59]} 4. O-O {[%clk 0:03:00]}  Nc6 {[%clk 0:02:58]} 5. d3 {[%clk 0:03:00]}  e5 {[%clk 0:02:58]} 6. e4 {[%clk 0:03:00]}  Be6 {[%clk 0:02:54]} 7. Ng5 {[%clk 0:02:52]}  Bg4 {[%clk 0:02:53]} 8. f3 {[%clk 0:02:53]}  Bd7 {[%clk 0:02:49]} 9. Nc3 {[%clk 0:02:51]}  d4 {[%clk 0:02:46]} 10. Ne2 {[%clk 0:02:49]}  h6 {[%clk 0:02:34]} 11. Nh3 {[%clk 0:02:48]}  g5 {[%clk 0:02:34]} 12. Nf2 {[%clk 0:02:47]}  Bd6 {[%clk 0:02:32]} 13. Bh3 {[%clk 0:02:45]}  Bxh3 {[%clk 0:02:25]} 14. Nxh3 {[%clk 0:02:46]}  Qd7 {[%clk 0:02:26]} 15. Nf2 {[%clk 0:02:45]}  Qe6 {[%clk 0:02:20]} 16. c4 {[%clk 0:02:44]}  dxc3 {[%clk 0:02:14]} 17. bxc3 {[%clk 0:02:44]}  O-O-O {[%clk 0:02:14]} 18. Qb3 {[%clk 0:02:40]}  Qd7 {[%clk 0:02:05]} 19. Be3 {[%clk 0:02:31]}  g4 {[%clk 0:02:05]} 20. fxg4 {[%clk 0:02:27]}  Nxg4 {[%clk 0:02:06]} 21. Nxg4 {[%clk 0:02:27]}  Qxg4 {[%clk 0:02:07]} 22. Rxf7 {[%clk 0:02:27]}  Na5 {[%clk 0:02:02]} 23. Qc2 {[%clk 0:02:18]}  h5 {[%clk 0:01:45]} 24. Kg2 {[%clk 0:02:18]}  h4 {[%clk 0:01:39]} 25. h3 {[%clk 0:02:18]}  Qh5 {[%clk 0:01:30]} 26. Raf1 {[%clk 0:02:17]}  hxg3 {[%clk 0:01:30]} 27. Ng1 {[%clk 0:02:17]}  Rhf8 {[%clk 0:00:34]} 28. Rxf8 {[%clk 0:02:09]}  Bxf8 {[%clk 0:00:35]} 29. Rf5 {[%clk 0:02:03]}  Qg6 {[%clk 0:00:33]} 30. Nf3 {[%clk 0:01:59]}  Nc6 {[%clk 0:00:30]} 31. Bg5 {[%clk 0:01:56]}  Re8 {[%clk 0:00:23]} 32. Qb3 {[%clk 0:01:55]}  Bh6 {[%clk 0:00:21]} 33. Rf6 {[%clk 0:01:51]}  Qg7 {[%clk 0:00:09]} 34. Rxh6 {[%clk 0:01:50]}  Rf8 {[%clk 0:00:09]} 35. Qe6+ {[%clk 0:01:39]}  Kb8 {[%clk 0:00:10]} 36. Qd6+ {[%clk 0:01:39]}  Ka8 {[%clk 0:00:09]} 37. Rg6 {[%clk 0:01:38]}  Qh8 {[%clk 0:00:04]} 38. Bf6 {[%clk 0:01:33]}  Qh7 {[%clk 0:00:03]} 39. Qxf8+ {[%clk 0:01:33]} 1-0


[Site "https://www.chess.com"]

[Event "Titled Tuesday Blitz May 10 Late 2022"]
[White "Marin Masis, Jose Esteban"]
[Black "Papp, Petra"]
[WhiteFideId "6508146"]
[BlackFideId "739049"]
[WhiteElo "1710"]
[BlackElo "2259"]
[Result "0-1"]
[Round "04"]
[TimeControl "180+1"]
[Date "2022.05.11"]
[WhiteClock "0:00:46"]
[BlackClock "0:00:26"]

1. e4 {[%clk 0:03:00]}  c5 {[%clk 0:02:58]} 2. Nf3 {[%clk 0:02:58]}  d6 {[%clk 0:02:58]} 3. d4 {[%clk 0:02:57]}  cxd4 {[%clk 0:02:59]} 4. Nxd4 {[%clk 0:02:47]}  Nf6 {[%clk 0:02:57]} 5. Nc3 {[%clk 0:02:46]}  g6 {[%clk 0:02:26]} 6. Bc4 {[%clk 0:02:43]}  Bg7 {[%clk 0:02:22]} 7. f3 {[%clk 0:02:43]}  O-O {[%clk 0:02:08]} 8. Be3 {[%clk 0:02:42]}  Nc6 {[%clk 0:02:08]} 9. Qd2 {[%clk 0:02:40]}  Bd7 {[%clk 0:02:07]} 10. O-O-O {[%clk 0:02:39]}  Rb8 {[%clk 0:02:07]} 11. h4 {[%clk 0:02:37]}  Na5 {[%clk 0:02:05]} 12. Bb3 {[%clk 0:02:34]}  b5 {[%clk 0:02:05]} 13. g4 {[%clk 0:02:30]}  Nc4 {[%clk 0:02:03]} 14. Bxc4 {[%clk 0:02:26]}  bxc4 {[%clk 0:02:03]} 15. Kb1 {[%clk 0:02:16]}  Qb6 {[%clk 0:01:48]} 16. Qc1 {[%clk 0:02:16]}  Qa5 {[%clk 0:01:44]} 17. Ka1 {[%clk 0:02:14]}  Rb6 {[%clk 0:01:23]} 18. h5 {[%clk 0:02:03]}  Rfb8 {[%clk 0:01:19]} 19. Nb3 {[%clk 0:01:32]}  cxb3 {[%clk 0:01:13]} 20. Bxb6 {[%clk 0:01:27]}  Rxb6 {[%clk 0:01:12]} 21. cxb3 {[%clk 0:01:25]}  Rxb3 {[%clk 0:01:09]} 22. h6 {[%clk 0:01:11]}  Bh8 {[%clk 0:01:05]} 23. Qc2 {[%clk 0:01:09]}  Be6 {[%clk 0:01:02]} 24. Nd5 {[%clk 0:01:03]}  Nxd5 {[%clk 0:00:56]} 25. Rxd5 {[%clk 0:01:00]}  Rb5 {[%clk 0:00:27]} 26. Rxb5 {[%clk 0:00:46]}  Qxa2# {[%clk 0:00:26]} 0-1


[Site "https://www.chess.com"]

[Event "Titled Tuesday Blitz May 10 Late 2022"]
[White "Martic, Ivan"]
[Black "Donchenko, Alexander"]
[WhiteFideId "929301"]
[BlackFideId "24603295"]
[WhiteElo "2317"]
[BlackElo "2572"]
[Result "0-1"]
[Round "04"]
[TimeControl "180+1"]
[Date "2022.05.10"]
[WhiteClock "0:00:01"]
[BlackClock "0:00:16"]

1. e4 {[%clk 0:03:00]}  c5 {[%clk 0:03:00]} 2. Nf3 {[%clk 0:03:00]}  d6 {[%clk 0:03:00]} 3. d4 {[%clk 0:02:59]}  cxd4 {[%clk 0:03:01]} 4. Nxd4 {[%clk 0:03:00]}  Nf6 {[%clk 0:03:02]} 5. Nc3 {[%clk 0:03:00]}  a6 {[%clk 0:03:03]} 6. Bg5 {[%clk 0:02:59]}  Nbd7 {[%clk 0:03:03]} 7. Bc4 {[%clk 0:02:58]}  Qb6 {[%clk 0:03:03]} 8. Bb3 {[%clk 0:02:50]}  e6 {[%clk 0:03:03]} 9. Qd2 {[%clk 0:02:45]}  Be7 {[%clk 0:03:03]} 10. O-O-O {[%clk 0:02:43]}  Nc5 {[%clk 0:03:01]} 11. Rhe1 {[%clk 0:02:38]}  Qc7 {[%clk 0:03:00]} 12. f4 {[%clk 0:02:35]}  h6 {[%clk 0:02:59]} 13. Bxf6 {[%clk 0:02:21]}  Bxf6 {[%clk 0:03:00]} 14. Kb1 {[%clk 0:02:20]}  O-O {[%clk 0:02:56]} 15. f5 {[%clk 0:02:09]}  b5 {[%clk 0:02:53]} 16. fxe6 {[%clk 0:02:09]}  fxe6 {[%clk 0:02:51]} 17. Nd5 {[%clk 0:01:49]}  Nxb3 {[%clk 0:02:17]} 18. Nxb3 {[%clk 0:01:11]}  exd5 {[%clk 0:01:13]} 19. Qxd5+ {[%clk 0:01:12]}  Qf7 {[%clk 0:01:02]} 20. Qxa8 {[%clk 0:01:10]}  Bg4 {[%clk 0:01:01]} 21. Qxa6 {[%clk 0:01:05]}  Bxd1 {[%clk 0:01:02]} 22. Rxd1 {[%clk 0:01:06]}  Be5 {[%clk 0:01:00]} 23. Qxb5 {[%clk 0:00:59]}  Qh5 {[%clk 0:00:59]} 24. Qd5+ {[%clk 0:00:57]}  Kh8 {[%clk 0:00:59]} 25. h3 {[%clk 0:00:48]}  Qe2 {[%clk 0:00:58]} 26. a4 {[%clk 0:00:33]}  Rc8 {[%clk 0:00:51]} 27. Qd2 {[%clk 0:00:28]}  Qxe4 {[%clk 0:00:51]} 28. a5 {[%clk 0:00:25]}  Rb8 {[%clk 0:00:44]} 29. Qd5 {[%clk 0:00:16]}  Qe2 {[%clk 0:00:38]} 30. Rd2 {[%clk 0:00:15]}  Qf1+ {[%clk 0:00:37]} 31. Ka2 {[%clk 0:00:15]}  Rb4 {[%clk 0:00:32]} 32. Qa8+ {[%clk 0:00:13]}  Kh7 {[%clk 0:00:32]} 33. Qc6 {[%clk 0:00:11]}  Qf4 {[%clk 0:00:27]} 34. c3 {[%clk 0:00:09]}  Rxb3 {[%clk 0:00:26]} 35. Kxb3 {[%clk 0:00:09]}  Qxd2 {[%clk 0:00:26]} 36. a6 {[%clk 0:00:10]}  Qd1+ {[%clk 0:00:25]} 37. Kb4 {[%clk 0:00:09]}  Qa1 {[%clk 0:00:23]} 38. b3 {[%clk 0:00:07]}  d5 {[%clk 0:00:23]} 39. Kb5 {[%clk 0:00:06]}  Bxc3 {[%clk 0:00:22]} 40. Kb6 {[%clk 0:00:05]}  Qa5+ {[%clk 0:00:20]} 41. Kb7 {[%clk 0:00:05]}  Bd4 {[%clk 0:00:20]} 42. Qc7 {[%clk 0:00:02]}  Qb4+ {[%clk 0:00:18]} 43. Kc8 {[%clk 0:00:02]}  Qxb3 {[%clk 0:00:16]} 44. Qd7 {[%clk 0:00:01]}  Qc4+ {[%clk 0:00:16]} 0-1


[Site "https://www.chess.com"]

[Event "Titled Tuesday Blitz May 10 Late 2022"]
[White "Matinian, Nikita"]
[Black "Gurevich, Dmitry"]
[WhiteFideId "24129100"]
[BlackFideId "2000407"]
[WhiteElo "2422"]
[BlackElo "2506"]
[Result "0-1"]
[Round "04"]
[TimeControl "180+1"]
[Date "2022.05.10"]
[WhiteClock "0:00:04"]
[BlackClock "0:00:53"]

1. e4 {[%clk 0:03:00]}  c5 {[%clk 0:02:58]} 2. Nf3 {[%clk 0:02:44]}  d6 {[%clk 0:02:58]} 3. d4 {[%clk 0:02:43]}  cxd4 {[%clk 0:02:58]} 4. Nxd4 {[%clk 0:02:44]}  Nf6 {[%clk 0:02:57]} 5. Nc3 {[%clk 0:02:45]}  Nc6 {[%clk 0:02:57]} 6. Bc4 {[%clk 0:02:43]}  Bd7 {[%clk 0:02:54]} 7. Be3 {[%clk 0:02:35]}  Ng4 {[%clk 0:02:53]} 8. O-O {[%clk 0:02:33]}  Nxe3 {[%clk 0:02:48]} 9. fxe3 {[%clk 0:02:33]}  Ne5 {[%clk 0:02:36]} 10. Bb3 {[%clk 0:02:23]}  e6 {[%clk 0:02:33]} 11. Nb1 {[%clk 0:01:36]}  Be7 {[%clk 0:02:24]} 12. Nd2 {[%clk 0:01:36]}  O-O {[%clk 0:02:22]} 13. Qh5 {[%clk 0:01:37]}  g6 {[%clk 0:02:16]} 14. Qh3 {[%clk 0:01:36]}  Bf6 {[%clk 0:02:11]} 15. Rf2 {[%clk 0:01:29]}  Bg7 {[%clk 0:02:09]} 16. Raf1 {[%clk 0:01:29]}  h5 {[%clk 0:02:01]} 17. Rf4 {[%clk 0:00:58]}  Rc8 {[%clk 0:01:42]} 18. Qg3 {[%clk 0:00:58]}  b5 {[%clk 0:01:27]} 19. h4 {[%clk 0:00:54]}  a5 {[%clk 0:01:25]} 20. c3 {[%clk 0:00:53]}  a4 {[%clk 0:01:23]} 21. Bc2 {[%clk 0:00:36]}  a3 {[%clk 0:01:22]} 22. bxa3 {[%clk 0:00:33]}  Rxc3 {[%clk 0:01:22]} 23. Bb3 {[%clk 0:00:34]}  Qb6 {[%clk 0:01:12]} 24. Qe1 {[%clk 0:00:24]}  Ng4 {[%clk 0:01:07]} 25. Rxg4 {[%clk 0:00:18]}  Rxe3 {[%clk 0:00:54]} 26. Qxe3 {[%clk 0:00:04]}  Bxd4 {[%clk 0:00:53]} 0-1


[Site "https://www.chess.com"]